fUST/lending_fUST_20250227
["ID","MTS","AMOUNT","RATE_DAILY","PERIOD"]
[354722908,1740645059792,-511.37,0.00051232,120]
[354722909,1740645059801,-500.0,0.00051232,120]
[354722910,1740645059811,-534.18124338,0.00051232,120]
[354722911,1740645059820,-750.83,0.00051232,120]
[354722912,1740645059829,-537.68,0.00051232,120]
[354722913,1740645059838,-639.17,0.00051232,120]
[354722914,1740645059847,-681.92,0.00051232,120]
[354722915,1740645059856,-663.83,0.00051232,120]
[354722916,1740645059865,-500.0,0.00051232,120]
[354722917,1740645059875,-500.0,0.00051232,120]
[354722918,1740645059884,-556.53,0.00051232,120]
[354722919,1740645059894,-663.48,0.00051232,120]
[354722920,1740645059903,-569.72,0.00051232,120]
[354722921,1740645059912,-1031.79,0.00051232,120]
[354722922,1740645059922,-549.69,0.00051232,120]
[354722923,1740645059931,-540.2,0.00051232,120]
[354722924,1740645059941,-241.21592422,0.00051232,120]
[354722925,1740645059950,-1080.0,0.00051232,120]
[354722926,1740645059959,-500.0,0.00051232,120]
[354722927,1740645059969,-701.25,0.00051232,120]
[354722928,1740645059978,-500.0,0.00051232,120]
[354722929,1740645059987,-706.92,0.00051232,120]
[354722930,1740645059996,-500.0,0.00051232,120]
[354722931,1740645060006,-500.0,0.00051232,120]
[354722932,1740645060016,-500.0,0.00051232,120]
[354722933,1740645060026,-1475.23,0.00051232,120]
[354722934,1740645060036,-500.0,0.00051232,120]
[354722935,1740645060045,-3605.51,0.00051232,120]
[354722936,1740645060055,-706.59,0.00051232,120]
[354722937,1740645060066,-5880.65,0.00051232,120]
[354722938,1740645060075,-687.22,0.00051232,120]
[354722939,1740645060085,-829.07,0.00051232,120]
[354722940,1740645060095,-2715.66,0.00051232,120]
[354722941,1740645060105,-1233.62,0.00051232,120]
[354722942,1740645060115,-890.87,0.00051232,120]
[354722943,1740645060124,-44425.16,0.00051232,7]
[354722944,1740645060133,-525.49,0.00051232,120]
[354722945,1740645060143,-1160.72,0.00051232,120]
[354722946,1740645060152,-1542.34,0.00051232,120]
[354722947,1740645060162,-10995.86,0.00051232,120]
[354722948,1740645060171,-948.49,0.00051232,120]
[354722949,1740645060181,-3757.81,0.00051232,120]
[354722950,1740645060190,-917.96,0.00051232,120]
[354722951,1740645060199,-564.18,0.00051232,120]
[354722952,1740645060209,-501.08,0.00051232,120]
[354722953,1740645060219,-1429.82,0.00051232,120]
[354722954,1740645060228,-621.86,0.00051232,120]
[354722955,1740645060237,-978.18,0.00051232,120]
[354722956,1740645060247,-500.0,0.00051232,120]
[354722957,1740645060257,-2204.67,0.00051232,120]
[354722958,1740645060266,-1661.65,0.00051232,120]
[354722959,1740645060275,-500.0,0.00051232,120]
[354722960,1740645060285,-1062.09,0.00051232,120]
[354722961,1740645060294,-2457.94,0.00051232,120]
[354722962,1740645060303,-668.19,0.00051232,120]
[354722963,1740645060312,-1292.87,0.00051232,120]
[354722964,1740645060321,-778.13,0.00051232,120]
[354722965,1740645060331,-1176.62,0.00051232,120]
[354722966,1740645060340,-965.62,0.00051232,120]
[354722967,1740645060349,-536.82,0.00051232,120]
[354722968,1740645060360,-1216.86,0.00051232,120]
[354722969,1740645060371,-613.31,0.00051232,120]
[354722970,1740645060381,-1414.02,0.00051232,120]
[354722971,1740645060390,-799.1,0.00051232,120]
[354722972,1740645060401,-10598.07,0.00051232,6]
[354722973,1740645060410,-821.64,0.00051232,120]
[354722974,1740645060420,-3104.1,0.00051232,120]
[354722975,1740645060430,-1640.98,0.00051232,120]
[354722976,1740645060440,-152.8332208,0.00051232,120]
[354722977,1740645060450,-1310.59,0.00051232,120]
[354722978,1740645060460,-641.14,0.00051232,120]
[354722979,1740645060469,-17858.17,0.00051232,120]
[354722980,1740645060478,-708.95,0.00051232,120]
[354722981,1740645060487,-823.99,0.00051232,120]
[354722982,1740645060496,-2086.09,0.00051232,120]
[354722983,1740645060507,-655.68,0.00051232,120]
[354722984,1740645060516,-1565.67,0.00051232,120]
[354722985,1740645060526,-1232.62,0.00051232,120]
[354722986,1740645060536,-7144.45,0.00051232,120]
[354722987,1740645060546,-1631.0,0.00051233,30]
[354722988,1740645060555,-500.0,0.00051233,30]
[354722989,1740645060565,-500.0,0.00051233,30]
[354722990,1740645060574,-500.0,0.00051293,2]
[354722991,1740645060584,-500.0,0.00051393,2]
[354722992,1740645060593,-2155.89,0.000514,30]
[354722993,1740645060602,-500.0,0.00051493,2]
[354722994,1740645060611,-437.53,0.000515,30]
[354722995,1740645060620,-89119.82,0.000515,30]
[354722996,1740645060629,-5274.61,0.000515,30]
[354722997,1740645060638,-511.37,0.00051506,120]
[354722998,1740645060647,-500.0,0.00051506,120]
[354722999,1740645060657,-750.83,0.00051506,120]
[354723000,1740645060666,-537.68,0.00051506,120]
[354723001,1740645060676,-639.17,0.00051506,120]
[354723002,1740645060686,-681.92,0.00051506,120]
[354723003,1740645060695,-663.83,0.00051506,120]
[354723004,1740645060704,-500.0,0.00051506,120]
[354723005,1740645060713,-500.0,0.00051506,120]
[354723006,1740645060723,-556.53,0.00051506,120]
[354723007,1740645060733,-663.48,0.00051506,120]
[354723008,1740645060742,-569.72,0.00051506,120]
[354723009,1740645060752,-1031.79,0.00051506,120]
[354723010,1740645060762,-549.69,0.00051506,120]
[354723011,1740645060771,-540.2,0.00051506,120]
[354723012,1740645060780,-1080.0,0.00051506,120]
[354723013,1740645060789,-500.0,0.00051506,120]
[354723014,1740645060799,-701.25,0.00051506,120]
[354723015,1740645060808,-500.0,0.00051506,120]
[354723016,1740645060818,-706.92,0.00051506,120]
[354723017,1740645060827,-500.0,0.00051506,120]
[354723018,1740645060839,-500.0,0.00051506,120]
[354723019,1740645060847,-500.0,0.00051506,120]
[354723020,1740645060856,-1475.23,0.00051506,120]
[354723021,1740645060864,-422.76486164,0.00051506,120]
[354723022,1740645060874,-3605.51,0.00051506,120]
[354723023,1740645060886,-706.59,0.00051506,120]
[354723024,1740645060898,-5880.65,0.00051506,120]
[354723025,1740645060909,-687.22,0.00051506,120]
[354723026,1740645060920,-829.07,0.00051506,120]
[354723027,1740645060930,-2715.66,0.00051506,120]
[354723028,1740645060943,-1233.62,0.00051506,120]
[354723029,1740645060952,-890.87,0.00051506,120]
[354723030,1740645060961,-44425.16,0.00051506,7]
[354723031,1740645060970,-525.49,0.00051506,120]
[354723032,1740645060979,-1160.72,0.00051506,120]
[354723033,1740645060989,-1542.34,0.00051506,120]
[354723034,1740645061000,-10995.86,0.00051506,120]
[354723035,1740645061010,-948.49,0.00051506,120]
[354723036,1740645061019,-3757.81,0.00051506,120]
[354723037,1740645061029,-917.96,0.00051506,120]
[354723038,1740645061038,-564.18,0.00051506,120]
[354723039,1740645061047,-501.08,0.00051506,120]
[354723040,1740645061057,-1429.82,0.00051506,120]
[354723041,1740645061065,-621.86,0.00051506,120]
[354723042,1740645061075,-978.18,0.00051506,120]
[354723043,1740645061085,-500.0,0.00051506,120]
[354723044,1740645061095,-2204.67,0.00051506,120]
[354723045,1740645061104,-1661.65,0.00051506,120]
[354723046,1740645061113,-304.47492372,0.00051506,120]
[354723047,1740645061123,-1062.09,0.00051506,120]
[354723048,1740645061132,-2457.94,0.00051506,120]
[354723049,1740645061141,-668.19,0.00051506,120]
[354723050,1740645061151,-1292.87,0.00051506,120]
[354723051,1740645061162,-778.13,0.00051506,120]
[354723052,1740645061172,-1176.62,0.00051506,120]
[354723053,1740645061181,-965.62,0.00051506,120]
[354723054,1740645061192,-1216.86,0.00051506,120]
[354723055,1740645061201,-536.82,0.00051506,120]
[354723056,1740645061211,-613.31,0.00051506,120]
[354723057,1740645061220,-1414.02,0.00051506,120]
[354723058,1740645061231,-799.1,0.00051506,120]
[354723059,1740645061241,-10598.07,0.00051506,6]
[354723060,1740645061250,-821.64,0.00051506,120]
[354723061,1740645061259,-3104.1,0.00051506,120]
[354723062,1740645061268,-1640.98,0.00051506,120]
[354723063,1740645061278,-1310.59,0.00051506,120]
[354723064,1740645061287,-641.14,0.00051506,120]
[354723065,1740645061296,-17858.17,0.00051506,120]
[354723066,1740645061305,-708.95,0.00051506,120]
[354723067,1740645061315,-823.99,0.00051506,120]
[354723068,1740645061324,-2086.09,0.00051506,120]
[354723069,1740645061334,-655.68,0.00051506,120]
[354723070,1740645061343,-1565.67,0.00051506,120]
[354723071,1740645061352,-1232.62,0.00051506,120]
[354723072,1740645061482,-7144.45,0.00051506,120]
[354723073,1740645061492,-1631.0,0.00051507,30]
[354723074,1740645061502,-750.63921779,0.00051507,30]
[354723075,1740645061511,-630.05472186,0.00051507,30]
[354723076,1740645061521,-500.0,0.00051593,2]
[354723077,1740645061531,-150.0,0.00051622,2]
[354723078,1740645061540,-150.0,0.00051622,2]
[354723079,1740645061549,-3850.61077407,0.00051622,2]
[354723080,1740645061558,-177.26334405,0.00051622,2]
[354723081,1740645061568,-463.10590383,0.00051622,2]
[354723082,1740645061577,-38662.00431637,0.00051622,2]
[354723083,1740645061588,-187.33970085,0.00051622,2]
[354723084,1740645061597,-3000.0,0.00051622,120]
[354723085,1740645061608,-14258.15963721,0.00051622,120]
[354723086,1740645061620,-3813.94893747,0.00051622,2]
[354723087,1740645061631,-1591.77287772,0.00051622,120]
[354723088,1740645061640,-16892.79642132,0.00051622,2]
[354723089,1740645061649,-92660.0,0.00051622,2]
[354723090,1740645061659,-6463.0,0.00051622,2]
[354723091,1740645061669,-260821.60285089,0.00051622,2]
[354723092,1740645061693,-1629.39969633,0.000249,2]
[354723093,1740645061703,-6970.70030367,0.00051622,2]
[354723094,1740645061815,-846.21,0.00046575,120]
[354723095,1740645061824,-500.0,0.00046575,120]
[354723096,1740645061834,-500.0,0.00046575,120]
[354723097,1740645061843,-500.0,0.00046575,120]
[354723098,1740645061851,-500.0,0.00046575,120]
[354723099,1740645061860,-501.96289045,0.00046575,120]
[354723100,1740645061870,-846.21,0.00046849,120]
[354723101,1740645061879,-500.0,0.00046849,120]
[354723102,1740645061888,-500.0,0.00046849,120]
[354723103,1740645061897,-500.0,0.00046849,120]
[354723104,1740645061906,-846.21,0.00047123,120]
[354723105,1740645061915,-500.0,0.00047123,120]
[354723106,1740645061924,-500.0,0.00047123,120]
[354723107,1740645061934,-151.0,0.00047397,110]
[354723108,1740645061944,-846.21,0.00047397,120]
[354723109,1740645061953,-347.85743595,0.00047397,120]
[354723110,1740645061962,-151.0,0.00047671,110]
[354723111,1740645061972,-846.21,0.00047671,120]
[354723112,1740645061981,-58.95851916,0.00047945,110]
[354723113,1740645062102,-1629.3996963,0.00031242,2]
[354723114,1740645062112,-500.0,0.00046575,120]
[354723115,1740645062121,-500.0,0.00046575,120]
[354723116,1740645062130,-500.0,0.00046575,120]
[354723117,1740645062139,-500.0,0.00046849,120]
[354723118,1740645062148,-500.0,0.00046849,120]
[354723119,1740645062157,-500.0,0.00046849,120]
[354723120,1740645062166,-500.0,0.00047123,120]
[354723121,1740645062175,-223.49,0.00047123,120]
[354723122,1740645062184,-151.0,0.00047397,110]
[354723123,1740645062193,-151.0,0.00047671,110]
[354723124,1740645062203,-92.04148084,0.00047945,110]
[354723125,1740645062213,-846.21,0.00047945,120]
[354723126,1740645062222,-151.0,0.00047945,110]
[354723127,1740645062231,-151.0,0.00048219,110]
[354723128,1740645062240,-846.21,0.00048219,120]
[354723129,1740645062249,-151.0,0.00048219,110]
[354723130,1740645062259,-151.0,0.00048493,110]
[354723131,1740645062268,-846.21,0.00048493,120]
[354723132,1740645062277,-846.21,0.00048767,120]
[354723133,1740645062287,-151.0,0.00048767,110]
[354723134,1740645062296,-151.0,0.00049,110]
[354723135,1740645062305,-846.21,0.00049041,120]
[354723136,1740645062314,-846.21,0.00049315,120]
[354723137,1740645062323,-151.0,0.00049315,110]
[354723138,1740645062334,-846.21,0.00049589,120]
[354723139,1740645062343,-151.0,0.00049589,110]
[354723140,1740645062353,-846.21,0.00049863,120]
[354723141,1740645062364,-151.0,0.00049863,110]
[354723142,1740645062374,-846.21,0.00050136,120]
[354723143,1740645062384,-846.21,0.0005041,120]
[354723144,1740645062393,-846.21,0.00050684,120]
[354723145,1740645062402,-846.21,0.00050958,120]
[354723146,1740645062412,-5073.51658748,0.00051622,2]
[354723147,1740645062424,-19640.55151648,0.00051622,2]
[354723148,1740645062553,-500.0,0.00046575,120]
[354723149,1740645062562,-500.0,0.00046575,120]
[354723150,1740645062571,-500.0,0.00046849,120]
[354723151,1740645062581,-500.0,0.00046849,120]
[354723152,1740645062591,-500.0,0.00047123,120]
[354723153,1740645062600,-500.0,0.00047123,120]
[354723154,1740645062610,-500.0,0.00047397,120]
[354723155,1740645062619,-500.0,0.00047671,120]
[354723156,1740645062628,-236.07,0.00047945,120]
[354723157,1740645062638,-151.0,0.00048493,110]
[354723158,1740645062648,-151.0,0.00048767,110]
[354723159,1740645062658,-151.0,0.00049,110]
[354723160,1740645062672,-159.718835,0.00049315,110]
[354723161,1740645062694,-846.21,0.00051232,120]
[354723162,1740645062706,-846.21,0.00051506,120]
[354723163,1740645062718,-62044.61754754,0.00051622,2]
[354723164,1740645062731,-500.0,0.00051693,2]
[354723165,1740645062743,-511.37,0.0005178,120]
[354723166,1740645062753,-500.0,0.0005178,120]
[354723167,1740645062764,-750.83,0.0005178,120]
[354723168,1740645062773,-537.68,0.0005178,120]
[354723169,1740645062783,-639.17,0.0005178,120]
[354723170,1740645062792,-681.92,0.0005178,120]
[354723171,1740645062802,-663.83,0.0005178,120]
[354723172,1740645062813,-500.0,0.0005178,120]
[354723173,1740645062822,-500.0,0.0005178,120]
[354723174,1740645062831,-556.53,0.0005178,120]
[354723175,1740645062840,-663.48,0.0005178,120]
[354723176,1740645062850,-569.72,0.0005178,120]
[354723177,1740645062859,-1031.79,0.0005178,120]
[354723178,1740645062870,-549.69,0.0005178,120]
[354723179,1740645062880,-540.2,0.0005178,120]
[354723180,1740645062900,-1080.0,0.0005178,120]
[354723181,1740645062909,-500.0,0.0005178,120]
[354723182,1740645062919,-701.25,0.0005178,120]
[354723183,1740645062928,-581.63579778,0.0005178,120]
[354723184,1740645062937,-706.92,0.0005178,120]
[354723185,1740645062946,-500.0,0.0005178,120]
[354723186,1740645062956,-500.0,0.0005178,120]
[354723187,1740645062965,-500.0,0.0005178,120]
[354723188,1740645062974,-1475.23,0.0005178,120]
[354723189,1740645062983,-3605.51,0.0005178,120]
[354723190,1740645062993,-706.59,0.0005178,120]
[354723191,1740645063003,-5880.65,0.0005178,120]
[354723192,1740645063012,-687.22,0.0005178,120]
[354723193,1740645063021,-829.07,0.0005178,120]
[354723194,1740645063032,-2715.66,0.0005178,120]
[354723195,1740645063042,-1233.62,0.0005178,120]
[354723196,1740645063052,-890.87,0.0005178,120]
[354723197,1740645063061,-44425.16,0.0005178,7]
[354723198,1740645063071,-525.49,0.0005178,120]
[354723199,1740645063081,-1160.72,0.0005178,120]
[354723200,1740645063092,-1542.34,0.0005178,120]
[354723201,1740645063102,-10995.86,0.0005178,120]
[354723202,1740645063113,-948.49,0.0005178,120]
[354723203,1740645063128,-3757.81,0.0005178,120]
[354723204,1740645063148,-917.96,0.0005178,120]
[354723205,1740645063158,-564.18,0.0005178,120]
[354723206,1740645063167,-501.08,0.0005178,120]
[354723207,1740645063177,-1429.82,0.0005178,120]
[354723208,1740645063186,-621.86,0.0005178,120]
[354723209,1740645063196,-978.18,0.0005178,120]
[354723210,1740645063205,-500.0,0.0005178,120]
[354723211,1740645063215,-2204.67,0.0005178,120]
[354723212,1740645063225,-1661.65,0.0005178,120]
[354723213,1740645063235,-1062.09,0.0005178,120]
[354723214,1740645063245,-2457.94,0.0005178,120]
[354723215,1740645063255,-668.19,0.0005178,120]
[354723216,1740645063265,-1292.87,0.0005178,120]
[354723217,1740645063275,-778.13,0.0005178,120]
[354723218,1740645063285,-1176.62,0.0005178,120]
[354723219,1740645063294,-965.62,0.0005178,120]
[354723220,1740645063304,-1216.86,0.0005178,120]
[354723221,1740645063313,-536.82,0.0005178,120]
[354723222,1740645063322,-613.31,0.0005178,120]
[354723223,1740645063332,-1414.02,0.0005178,120]
[354723224,1740645063343,-799.1,0.0005178,120]
[354723225,1740645063354,-10598.07,0.0005178,6]
[354723226,1740645063366,-821.64,0.0005178,120]
[354723227,1740645063376,-3104.1,0.0005178,120]
[354723228,1740645063385,-1640.98,0.0005178,120]
[354723229,1740645063395,-1310.59,0.0005178,120]
[354723230,1740645063406,-641.14,0.0005178,120]
[354723231,1740645063416,-17858.17,0.0005178,120]
[354723232,1740645063426,-708.95,0.0005178,120]
[354723233,1740645063436,-823.99,0.0005178,120]
[354723234,1740645063445,-655.68,0.0005178,120]
[354723235,1740645063456,-2086.09,0.0005178,120]
[354723236,1740645063466,-1565.67,0.0005178,120]
[354723237,1740645063476,-1232.62,0.0005178,120]
[354723238,1740645063485,-7144.45,0.0005178,120]
[354723239,1740645063494,-846.21,0.0005178,120]
[354723240,1740645063504,-1631.0,0.00051781,30]
[354723241,1740645063513,-500.0,0.00051793,2]
[354723242,1740645063523,-505.0,0.00051866,120]
[354723243,1740645063533,-2966.2,0.00051866,30]
[354723244,1740645063543,-500.0,0.00051893,2]
[354723245,1740645063553,-4044.52,0.000519,30]
[354723246,1740645063563,-503.0,0.00051908,120]
[354723247,1740645063573,-501.86311505,0.00051908,120]
[354723248,1740645063584,-151.0,0.00051918,120]
[354723249,1740645063594,-389.76440128,0.00051976,120]
[354723250,1740645063604,-500.0,0.00051993,2]
[354723251,1740645063614,-4341.28684413,0.00052,120]
[354723252,1740645063625,-1398.6535784,0.00052,120]
[354723253,1740645063635,-759.67,0.00052,51]
[354723254,1740645063645,-759.67,0.00052,51]
[354723255,1740645063654,-759.67,0.00052,51]
[354723256,1740645063664,-759.67,0.00052,51]
[354723257,1740645063673,-759.67,0.00052,51]
[354723258,1740645063683,-759.67,0.00052,51]
[354723259,1740645063692,-759.67,0.00052,51]
[354723260,1740645063702,-759.67,0.00052,51]
[354723261,1740645063712,-759.67,0.00052,51]
[354723262,1740645063721,-759.67,0.00052,51]
[354723263,1740645063732,-759.67,0.00052,51]
[354723264,1740645063741,-759.67,0.00052,51]
[354723265,1740645063751,-1000.0,0.00052052,7]
[354723266,1740645063761,-1000.0,0.00052052,10]
[354723267,1740645063771,-1000.0,0.00052052,10]
[354723268,1740645063780,-1000.0,0.00052052,10]
[354723269,1740645063790,-1000.0,0.00052052,10]
[354723270,1740645063799,-1000.0,0.00052052,10]
[354723271,1740645063809,-511.37,0.00052054,120]
[354723272,1740645063819,-500.0,0.00052054,120]
[354723273,1740645063830,-750.83,0.00052054,120]
[354723274,1740645063843,-537.68,0.00052054,120]
[354723275,1740645063853,-639.17,0.00052054,120]
[354723276,1740645063864,-681.92,0.00052054,120]
[354723277,1740645063874,-663.83,0.00052054,120]
[354723278,1740645063885,-500.0,0.00052054,120]
[354723279,1740645063896,-500.0,0.00052054,120]
[354723280,1740645063905,-556.53,0.00052054,120]
[354723281,1740645063915,-663.48,0.00052054,120]
[354723282,1740645063926,-569.72,0.00052054,120]
[354723283,1740645063937,-1031.79,0.00052054,120]
[354723284,1740645063946,-549.69,0.00052054,120]
[354723285,1740645063955,-540.2,0.00052054,120]
[354723286,1740645063965,-1080.0,0.00052054,120]
[354723287,1740645063975,-500.0,0.00052054,120]
[354723288,1740645063985,-701.25,0.00052054,120]
[354723289,1740645063995,-706.92,0.00052054,120]
[354723290,1740645064006,-234.94241094,0.00052054,120]
[354723291,1740645064017,-500.0,0.00052054,120]
[354723292,1740645064026,-500.0,0.00052054,120]
[354723293,1740645064037,-1475.23,0.00052054,120]
[354723294,1740645064047,-3605.51,0.00052054,120]
[354723295,1740645064171,-706.59,0.00052054,120]
[354723296,1740645064182,-5880.65,0.00052054,120]
[354723297,1740645064192,-687.22,0.00052054,120]
[354723298,1740645064202,-829.07,0.00052054,120]
[354723299,1740645064212,-2715.66,0.00052054,120]
[354723300,1740645064221,-1233.62,0.00052054,120]
[354723301,1740645064231,-890.87,0.00052054,120]
[354723302,1740645064241,-44425.16,0.00052054,7]
[354723303,1740645064250,-525.49,0.00052054,120]
[354723304,1740645064260,-1160.72,0.00052054,120]
[354723305,1740645064270,-1542.34,0.00052054,120]
[354723306,1740645064280,-10995.86,0.00052054,120]
[354723307,1740645064292,-948.49,0.00052054,120]
[354723308,1740645064302,-3757.81,0.00052054,120]
[354723309,1740645064312,-917.96,0.00052054,120]
[354723310,1740645064322,-564.18,0.00052054,120]
[354723311,1740645064332,-501.08,0.00052054,120]
[354723312,1740645064342,-1429.82,0.00052054,120]
[354723313,1740645064352,-621.86,0.00052054,120]
[354723314,1740645064362,-978.18,0.00052054,120]
[354723315,1740645064375,-500.0,0.00052054,120]
[354723316,1740645064384,-2204.67,0.00052054,120]
[354723317,1740645064394,-1661.65,0.00052054,120]
[354723318,1740645064403,-1062.09,0.00052054,120]
[354723319,1740645064412,-2457.94,0.00052054,120]
[354723320,1740645064421,-668.19,0.00052054,120]
[354723321,1740645064431,-1292.87,0.00052054,120]
[354723322,1740645064441,-778.13,0.00052054,120]
[354723323,1740645064451,-1176.62,0.00052054,120]
[354723324,1740645064461,-965.62,0.00052054,120]
[354723325,1740645064471,-1216.86,0.00052054,120]
[354723326,1740645064481,-536.82,0.00052054,120]
[354723327,1740645064491,-613.31,0.00052054,120]
[354723328,1740645064500,-1414.02,0.00052054,120]
[354723329,1740645064510,-799.1,0.00052054,120]
[354723330,1740645064519,-10598.07,0.00052054,6]
[354723331,1740645064528,-821.64,0.00052054,120]
[354723332,1740645064538,-3104.1,0.00052054,120]
[354723333,1740645064547,-1640.98,0.00052054,120]
[354723334,1740645064556,-1310.59,0.00052054,120]
[354723335,1740645064566,-641.14,0.00052054,120]
[354723336,1740645064575,-17858.17,0.00052054,120]
[354723337,1740645064584,-708.95,0.00052054,120]
[354723338,1740645064594,-823.99,0.00052054,120]
[354723339,1740645064604,-2086.09,0.00052054,120]
[354723340,1740645064613,-655.68,0.00052054,120]
[354723341,1740645064622,-1565.67,0.00052054,120]
[354723342,1740645064631,-1232.62,0.00052054,120]
[354723343,1740645064640,-7144.45,0.00052054,120]
[354723344,1740645064650,-846.21,0.00052054,120]
[354723345,1740645064659,-1631.0,0.00052055,30]
[354723346,1740645064668,-1000.0,0.00052055,120]
[354723347,1740645064678,-500.0,0.00052093,2]
[354723348,1740645064687,-15055.71323798,0.000521,120]
[354723349,1740645064696,-500.0,0.00052193,2]
[354723350,1740645064705,-150.0,0.000522,120]
[354723351,1740645064714,-423.0,0.000522,28]
[354723352,1740645064723,-1591.345243,0.000522,120]
[354723353,1740645064732,-167.273,0.00052277,120]
[354723354,1740645064741,-252.3745,0.00052277,120]
[354723355,1740645064751,-500.0,0.00052293,2]
[354723356,1740645064761,-885.59783732,0.00052328,120]
[354723357,1740645064770,-511.37,0.00052328,120]
[354723358,1740645064779,-500.0,0.00052328,120]
[354723359,1740645064788,-750.83,0.00052328,120]
[354723360,1740645064798,-537.68,0.00052328,120]
[354723361,1740645064807,-639.17,0.00052328,120]
[354723362,1740645064816,-681.92,0.00052328,120]
[354723363,1740645064825,-663.83,0.00052328,120]
[354723364,1740645064835,-500.0,0.00052328,120]
[354723365,1740645064845,-181.40334887,0.00052328,120]
[354723366,1740645064854,-556.53,0.00052328,120]
[354723367,1740645064864,-663.48,0.00052328,120]
[354723368,1740645064874,-569.72,0.00052328,120]
[354723369,1740645064883,-1031.79,0.00052328,120]
[354723370,1740645064892,-549.69,0.00052328,120]
[354723371,1740645064901,-540.2,0.00052328,120]
[354723372,1740645064911,-1080.0,0.00052328,120]
[354723373,1740645064920,-500.0,0.00052328,120]
[354723374,1740645064929,-701.25,0.00052328,120]
[354723375,1740645064939,-706.92,0.00052328,120]
[354723376,1740645064948,-224.79562485,0.00052328,120]
[354723377,1740645064958,-500.0,0.00052328,120]
[354723378,1740645064967,-1475.23,0.00052328,120]
[354723379,1740645064976,-3605.51,0.00052328,120]
[354723380,1740645064986,-706.59,0.00052328,120]
[354723381,1740645064996,-5880.65,0.00052328,120]
[354723382,1740645065005,-687.22,0.00052328,120]
[354723383,1740645065015,-829.07,0.00052328,120]
[354723384,1740645065024,-2715.66,0.00052328,120]
[354723385,1740645065034,-1233.62,0.00052328,120]
[354723386,1740645065043,-890.87,0.00052328,120]
[354723387,1740645065052,-44425.16,0.00052328,7]
[354723388,1740645065062,-525.49,0.00052328,120]
[354723389,1740645065071,-1160.72,0.00052328,120]
[354723390,1740645065080,-1542.34,0.00052328,120]
[354723391,1740645065090,-10995.86,0.00052328,120]
[354723392,1740645065099,-948.49,0.00052328,120]
[354723393,1740645065108,-3757.81,0.00052328,120]
[354723394,1740645065117,-917.96,0.00052328,120]
[354723395,1740645065126,-564.18,0.00052328,120]
[354723396,1740645065135,-501.08,0.00052328,120]
[354723397,1740645065145,-1429.82,0.00052328,120]
[354723398,1740645065154,-621.86,0.00052328,120]
[354723399,1740645065163,-978.18,0.00052328,120]
[354723400,1740645065172,-500.0,0.00052328,120]
[354723401,1740645065182,-2204.67,0.00052328,120]
[354723402,1740645065191,-1661.65,0.00052328,120]
[354723403,1740645065200,-1062.09,0.00052328,120]
[354723404,1740645065209,-2457.94,0.00052328,120]
[354723405,1740645065219,-668.19,0.00052328,120]
[354723406,1740645065227,-1292.87,0.00052328,120]
[354723407,1740645065236,-778.13,0.00052328,120]